[Event "AI Cup Div-3 2023"]
[Site "Online"]
[Date "2023.09.27"]
[Round "55.1"]
[White "Durarbayli, Vasif"]
[Black "Tomashevsky, Evgeny"]
[Result "1-0"]
[Annotator "ChessBase"]
[ECO "C85"]
[WhiteElo "2625"]
[BlackElo "2694"]
[PlyCount "55"]
[EventDate "2023.09.18"]
[EventType "k.o."]
[EventCountry "NET"]
[SourceTitle "playchess.com"]
[Source "ChessBase"]
[SourceQuality "1"]
[TimeControl "900+3"]

1. e4 {[%emt 0:00:03]} e5 {[%emt 0:00:05]} 2. Nf3 {[%emt 0:00:01]} Nc6 {[%emt 0:00:01]} 3. Bb5 {[%emt 0:00:00]} a6 {[%emt 0:00:02]} 4. Ba4 {[%emt 0:00:00]} Nf6 {[%emt 0:00:01]} 5. O-O {[%emt 0:00:01]} Be7 {[%emt 0:00:21]} 6. Bxc6 {[%emt 0:00:02]} dxc6 {[%emt 0:00:02]} 7. Re1 {[%emt 0:00:01]} Qd6 {[%emt 0:00:07]} 8. Na3 {[%emt 0:00:03]} b5 {[%emt 0:00:39]} 9. d4 {[%emt 0:00:05]} c5 {[%emt 0:00:19]} 10. dxe5 {[%emt 0:02:14]} Qxd1 {[%emt 0:00:11]} 11. Rxd1 {[%emt 0:00:01]} Nxe4 {[%emt 0:00:01]} 12. c4 {[%emt 0:00:24]} Rb8 {[%emt 0:04:55]} 13. Re1 {[%emt 0:02:47]} Bf5 {[%emt 0:00:06]} 14. h3 {[%emt 0:00:13]} O-O {[%emt 0:02:37]} 15. Bf4 {[%emt 0:00:58]} g5 {[%emt 0:01:41]} 16. Bh2 {[%emt 0:00:13]} Bg6 {[%emt 0:01:38]} 17. Rad1 {[%emt 0:01:27]} b4 {[%emt 0:00:57]} 18. Nc2 {[%emt 0:01:23]} Nxf2 {[%emt 0:00:02]} 19. Kxf2 {[%emt 0:00:01]} Bxc2 {[%emt 0:00:02]} 20. Rd7 {[%emt 0:00:01]} Rfe8 {[%emt 0:00:02]} 21. e6 {[%emt 0:00:26]} fxe6 {[%emt 0:00:15]} 22. Bxc7 {[%emt 0:00:34]} Rbc8 {[%emt 0:00:48]} 23. Rxe6 {[%emt 0:00:56]} Bf8 {[%emt 0:00:01]} 24. Rxa6 {[%emt 0:00:27]} Bg7 {[%emt 0:00:21]} 25. Ra7 {[%emt 0:01:02]} Ra8 {[%emt 0:00:05]} 26. Bb6 {[%emt 0:00:29]} Rxa7 {[%emt 0:00:06]} 27. Bxa7 {[%emt 0:00:00]} Bxb2 {[%emt 0:00:18]} 28. Rd2 {[%emt 0:00:10]} 1-0

[Event "AI Cup Div-3 2023"]
[Site "Online"]
[Date "2023.09.27"]
[Round "55.2"]
[White "Tomashevsky, Evgeny"]
[Black "Durarbayli, Vasif"]
[Result "1-0"]
[Annotator "ChessBase"]
[ECO "D78"]
[WhiteElo "2694"]
[BlackElo "2625"]
[PlyCount "101"]
[EventDate "2023.09.18"]
[EventType "k.o."]
[EventCountry "NET"]
[SourceTitle "playchess.com"]
[Source "ChessBase"]
[SourceQuality "1"]
[TimeControl "900+3"]

1. c4 {[%emt 0:00:04]} c6 {[%emt 0:00:04]} 2. Nf3 {[%emt 0:00:03]} d5 {[%emt 0:00:01]} 3. g3 {[%emt 0:00:01]} g6 {[%emt 0:00:01]} 4. Qa4 {[%emt 0:00:03]} Nd7 {[%emt 0:00:02]} 5. cxd5 {[%emt 0:00:12]} cxd5 {[%emt 0:00:06]} 6. Bg2 {[%emt 0:00:12]} Bg7 {[%emt 0:00:04]} 7. Nc3 {[%emt 0:00:43]} Ngf6 {[%emt 0:00:12]} 8. O-O {[%emt 0:00:18]} O-O {[%emt 0:00:04]} 9. d4 {[%emt 0:00:01]} Nb6 {[%emt 0:00:52]} 10. Qb3 {[%emt 0:00:09]} Ne4 {[%emt 0:00:18]} 11. Bf4 {[%emt 0:00:13]} Be6 {[%emt 0:01:02]} 12. Rfc1 {[%emt 0:00:14]} h6 {[%emt 0:00:53]} 13. Nb5 {[%emt 0:00:25]} Nc4 {[%emt 0:01:29]} 14. Nc7 {[%emt 0:02:16]} g5 {[%emt 0:00:02]} 15. Nxe6 {[%emt 0:03:23]} fxe6 {[%emt 0:00:00]} 16. Be5 {[%emt 0:00:20]} Nxe5 {[%emt 0:04:08]} 17. Nxe5 {[%emt 0:00:04]} Bxe5 {[%emt 0:00:18]} 18. dxe5 {[%emt 0:00:05]} Nxf2 {[%emt 0:00:42]} 19. Bf3 {[%emt 0:00:23]} Ne4 {[%emt 0:00:44]} 20. Bxe4 {[%emt 0:00:17]} dxe4 {[%emt 0:00:00]} 21. Qxe6+ {[%emt 0:00:02]} Kg7 {[%emt 0:00:03]} 22. Rd1 {[%emt 0:00:43]} Qb6+ {[%emt 0:00:20]} 23. Qxb6 {[%emt 0:00:02]} axb6 {[%emt 0:00:00]} 24. Rd7 {[%emt 0:00:01]} Kf7 {[%emt 0:01:05]} 25. Rf1+ {[%emt 0:02:15]} Ke6 {[%emt 0:00:56]} 26. Rxf8 {[%emt 0:01:40]} Rxf8 {[%emt 0:00:00]} 27. Rxb7 {[%emt 0:00:01]} e3 {[%emt 0:00:01]} 28. Rxb6+ {[%emt 0:00:01]} Kxe5 {[%emt 0:00:00]} 29. a4 {[%emt 0:00:01]} Rf2 {[%emt 0:00:07]} 30. a5 {[%emt 0:00:02]} Rxe2 {[%emt 0:00:01]} 31. a6 {[%emt 0:00:01]} Re1+ {[%emt 0:00:02]} 32. Kg2 {[%emt 0:00:01]} g4 {[%emt 0:00:49]} 33. Rb3 {[%emt 0:00:16]} e2 {[%emt 0:00:52]} 34. Re3+ {[%emt 0:00:48]} Kf6 {[%emt 0:00:46]} 35. b4 {[%emt 0:00:34]} Ra1 {[%emt 0:00:04]} 36. b5 {[%emt 0:00:06]} e1=Q {[%emt 0:00:33]} 37. Rxe1 {[%emt 0:00:03]} Rxe1 {[%emt 0:00:00]} 38. a7 {[%emt 0:00:02]} Re2+ {[%emt 0:00:01]} 39. Kg1 {[%emt 0:00:26]} Ra2 {[%emt 0:00:01]} 40. b6 {[%emt 0:00:01]} h5 {[%emt 0:00:03]} 41. b7 {[%emt 0:00:03]} Rxa7 {[%emt 0:00:00]} 42. b8=Q {[%emt 0:00:01]} Ra1+ {[%emt 0:00:00]} 43. Kf2 {[%emt 0:00:01]} Ra2+ {[%emt 0:00:01]} 44. Ke3 {[%emt 0:00:02]} Rxh2 {[%emt 0:00:00]} 45. Qf8+ {[%emt 0:00:05]} Ke6 {[%emt 0:00:05]} 46. Qg7 {[%emt 0:00:13]} Rh1 {[%emt 0:00:20]} 47. Qg6+ {[%emt 0:00:11]} Kd7 {[%emt 0:00:01]} 48. Kf4 {[%emt 0:00:05]} Rf1+ {[%emt 0:00:08]} 49. Kg5 {[%emt 0:00:01]} Rf3 {[%emt 0:00:03]} 50. Kh4 {[%emt 0:00:01]} Rf1 {[%emt 0:00:06]} 51. Qd3+ {[%emt 0:00:02]} 1-0

[Event "AI Cup Div-3 2023"]
[Site "Online"]
[Date "2023.09.27"]
[Round "55.2"]
[White "Demchenko, Anton"]
[Black "Meier, Georg"]
[Result "1-0"]
[Annotator "ChessBase"]
[ECO "C00"]
[WhiteElo "2608"]
[BlackElo "2628"]
[PlyCount "103"]
[EventDate "2023.09.18"]
[EventType "k.o."]
[EventCountry "NET"]
[SourceTitle "playchess.com"]
[Source "ChessBase"]
[SourceQuality "1"]
[TimeControl "900+3"]

1. e4 {[%emt 0:00:03]} e6 {[%emt 0:00:04]} 2. d3 {[%emt 0:00:13]} d5 {[%emt 0:00:01]} 3. Nd2 {[%emt 0:00:03]} Nf6 {[%emt 0:00:01]} 4. e5 {[%emt 0:00:01]} Nfd7 {[%emt 0:00:02]} 5. f4 {[%emt 0:00:00]} c5 {[%emt 0:00:01]} 6. Ndf3 {[%emt 0:00:00]} b5 {[%emt 0:00:03]} 7. Nh3 {[%emt 0:00:03]} Nc6 {[%emt 0:00:02]} 8. g3 {[%emt 0:00:01]} Be7 {[%emt 0:00:08]} 9. Bg2 {[%emt 0:00:00]} Bb7 {[%emt 0:00:03]} 10. O-O {[%emt 0:00:01]} Nb6 {[%emt 0:00:01]} 11. Qe2 {[%emt 0:00:03]} Qd7 {[%emt 0:00:01]} 12. Bd2 {[%emt 0:00:02]} O-O-O {[%emt 0:00:15]} 13. a3 {[%emt 0:00:15]} h6 {[%emt 0:00:26]} 14. Nf2 {[%emt 0:00:22]} Kb8 {[%emt 0:00:15]} 15. c3 {[%emt 0:01:27]} d4 {[%emt 0:00:06]} 16. a4 {[%emt 0:01:32]} Nxa4 {[%emt 0:01:54]} 17. c4 {[%emt 0:00:04]} Nb4 {[%emt 0:01:11]} 18. cxb5 {[%emt 0:03:30]} Qxb5 {[%emt 0:00:00]} 19. f5 {[%emt 0:00:37]} exf5 {[%emt 0:02:42]} 20. e6 {[%emt 0:00:03]} fxe6 {[%emt 0:00:03]} 21. Qxe6 {[%emt 0:00:14]} Bd6 {[%emt 0:00:33]} 22. Bxb4 {[%emt 0:00:44]} Qxb4 {[%emt 0:00:24]} 23. Qa2 {[%emt 0:00:10]} Bc6 {[%emt 0:00:16]} 24. b3 {[%emt 0:00:47]} Nc3 {[%emt 0:00:02]} 25. Qxa7+ {[%emt 0:00:00]} Kc8 {[%emt 0:00:01]} 26. Ra6 {[%emt 0:00:28]} Bd5 {[%emt 0:02:27]} 27. Rb6 {[%emt 0:00:28]} Rd7 {[%emt 0:00:03]} 28. Qa6+ {[%emt 0:01:33]} Bb7 {[%emt 0:00:02]} 29. Rxb7 {[%emt 0:00:03]} Qxb7 {[%emt 0:00:16]} 30. Qc4 {[%emt 0:00:03]} Qb5 {[%emt 0:01:58]} 31. Qe6 {[%emt 0:00:02]} Kd8 {[%emt 0:00:41]} 32. Ra1 {[%emt 0:00:05]} Re8 {[%emt 0:00:28]} 33. Qxf5 {[%emt 0:00:16]} Qxb3 {[%emt 0:00:27]} 34. Ra8+ {[%emt 0:00:53]} Bb8 {[%emt 0:00:20]} 35. Bh3 {[%emt 0:00:02]} Ree7 {[%emt 0:00:20]} 36. Qf8+ {[%emt 0:00:41]} Kc7 {[%emt 0:00:10]} 37. Bxd7 {[%emt 0:00:12]} Rxd7 {[%emt 0:00:03]} 38. Qxc5+ {[%emt 0:00:26]} Kb7 {[%emt 0:00:02]} 39. Ra1 {[%emt 0:00:08]} Qb6 {[%emt 0:00:18]} 40. Qa3 {[%emt 0:00:07]} Qc6 {[%emt 0:00:28]} 41. Ng4 {[%emt 0:00:26]} Rd5 {[%emt 0:00:12]} 42. Qe7+ {[%emt 0:00:07]} Bc7 {[%emt 0:00:01]} 43. Qf8 {[%emt 0:00:13]} Qd7 {[%emt 0:00:05]} 44. Qa8+ {[%emt 0:00:10]} Kb6 {[%emt 0:00:03]} 45. Qa6+ {[%emt 0:00:13]} Kc5 {[%emt 0:00:03]} 46. Nf2 {[%emt 0:00:08]} Qb5 {[%emt 0:00:03]} 47. Qe6 {[%emt 0:00:03]} Rd6 {[%emt 0:00:04]} 48. Ne4+ {[%emt 0:00:05]} Nxe4 {[%emt 0:00:02]} 49. Qxe4 {[%emt 0:00:00]} Kb6 {[%emt 0:00:02]} 50. Qa8 {[%emt 0:00:10]} Rd8 {[%emt 0:00:05]} 51. Qa7+ {[%emt 0:00:02]} Kc6 {[%emt 0:00:01]} 52. Rc1+ {[%emt 0:00:02]} 1-0

[Event "AI Cup Div-3 2023"]
[Site "Online"]
[Date "2023.09.27"]
[Round "55.3"]
[White "Tomashevsky, Evgeny"]
[Black "Durarbayli, Vasif"]
[Result "0-1"]
[Annotator "ChessBase"]
[ECO "A30"]
[WhiteElo "2694"]
[BlackElo "2625"]
[PlyCount "114"]
[EventDate "2023.09.18"]
[EventType "k.o."]
[EventCountry "NET"]
[SourceTitle "playchess.com"]
[Source "ChessBase"]
[SourceQuality "1"]
[TimeControl "900+3"]

1. c4 {[%emt 0:00:06]} c5 {[%emt 0:03:37]} 2. Nf3 {[%emt 0:00:10]} Nf6 {[%emt 0:00:04]} 3. Nc3 {[%emt 0:00:05]} e6 {[%emt 0:00:03]} 4. g3 {[%emt 0:00:06]} b6 {[%emt 0:00:04]} 5. Bg2 {[%emt 0:00:05]} Bb7 {[%emt 0:00:03]} 6. O-O {[%emt 0:00:07]} Be7 {[%emt 0:00:03]} 7. d4 {[%emt 0:00:05]} cxd4 {[%emt 0:00:05]} 8. Qxd4 {[%emt 0:00:04]} d6 {[%emt 0:00:10]} 9. Bg5 {[%emt 0:01:03]} h6 {[%emt 0:00:05]} 10. Bxf6 {[%emt 0:00:09]} Bxf6 {[%emt 0:00:03]} 11. Qd3 {[%emt 0:00:04]} Na6 {[%emt 0:00:22]} 12. Rfd1 {[%emt 0:01:00]} Nc5 {[%emt 0:00:22]} 13. Qe3 {[%emt 0:00:08]} O-O {[%emt 0:00:27]} 14. Rac1 {[%emt 0:00:06]} Bxc3 {[%emt 0:00:41]} 15. Rxc3 {[%emt 0:00:14]} Qc7 {[%emt 0:00:03]} 16. b3 {[%emt 0:00:16]} Rfd8 {[%emt 0:00:10]} 17. Rc2 {[%emt 0:00:09]} Bc6 {[%emt 0:00:15]} 18. Nd4 {[%emt 0:00:16]} Bxg2 {[%emt 0:00:05]} 19. Kxg2 {[%emt 0:00:04]} a6 {[%emt 0:00:06]} 20. Qf3 {[%emt 0:00:11]} Rac8 {[%emt 0:00:07]} 21. Rcd2 {[%emt 0:00:06]} Nd7 {[%emt 0:00:10]} 22. Nc2 {[%emt 0:00:56]} Ne5 {[%emt 0:00:30]} 23. Qf4 {[%emt 0:00:06]} b5 {[%emt 0:00:07]} 24. cxb5 {[%emt 0:00:06]} axb5 {[%emt 0:00:08]} 25. Nb4 {[%emt 0:00:20]} Ng6 {[%emt 0:00:41]} 26. Qd4 {[%emt 0:00:15]} d5 {[%emt 0:00:16]} 27. Rc2 {[%emt 0:00:22]} Qb7 {[%emt 0:00:09]} 28. Rdc1 {[%emt 0:00:06]} Rc4 {[%emt 0:01:06]} 29. Qd2 {[%emt 0:00:14]} d4+ {[%emt 0:00:31]} 30. Kg1 {[%emt 0:00:17]} Rxc2 {[%emt 0:00:04]} 31. Qxc2 {[%emt 0:00:08]} Ne7 {[%emt 0:00:17]} 32. Qd3 {[%emt 0:01:06]} Qb6 {[%emt 0:00:17]} 33. Qe4 {[%emt 0:00:44]} Qa5 {[%emt 0:00:22]} 34. Nd3 {[%emt 0:00:49]} Qxa2 {[%emt 0:00:13]} 35. Ne5 {[%emt 0:00:04]} Nd5 {[%emt 0:00:21]} 36. Qf3 {[%emt 0:01:00]} Rf8 {[%emt 0:00:23]} 37. Kf1 {[%emt 0:01:22]} Nc3 {[%emt 0:00:20]} 38. Nc6 {[%emt 0:00:05]} Qb2 {[%emt 0:00:27]} 39. Re1 {[%emt 0:00:07]} Qxb3 {[%emt 0:00:06]} 40. Nxd4 {[%emt 0:00:05]} Qc4 {[%emt 0:00:04]} 41. Nc6 {[%emt 0:00:06]} Nd5 {[%emt 0:00:13]} 42. Ne5 {[%emt 0:00:07]} Qc3 {[%emt 0:00:05]} 43. Nd3 {[%emt 0:00:06]} b4 {[%emt 0:00:08]} 44. Rc1 {[%emt 0:00:04]} Qd4 {[%emt 0:00:04]} 45. Rb1 {[%emt 0:00:22]} Rb8 {[%emt 0:00:07]} 46. Rb3 {[%emt 0:00:20]} Rc8 {[%emt 0:00:11]} 47. Kg2 {[%emt 0:00:10]} Rc3 {[%emt 0:00:12]} 48. Rb1 {[%emt 0:00:05]} b3 {[%emt 0:00:13]} 49. h4 {[%emt 0:00:06]} g6 {[%emt 0:00:12]} 50. h5 {[%emt 0:00:29]} g5 {[%emt 0:00:04]} 51. Kh2 {[%emt 0:00:06]} Kg7 {[%emt 0:00:13]} 52. Rd1 {[%emt 0:00:05]} Nf6 {[%emt 0:00:13]} 53. Kg2 {[%emt 0:00:15]} Rc2 {[%emt 0:00:22]} 54. Rb1 {[%emt 0:00:40]} b2 {[%emt 0:00:05]} 55. Kg1 {[%emt 0:00:08]} g4 {[%emt 0:00:12]} 56. Qe3 {[%emt 0:00:12]} Qxe3 {[%emt 0:00:04]} 57. fxe3 {[%emt 0:00:04]} Rxe2 {[%emt 0:00:03]} 0-1

[Event "AI Cup Div-3 2023"]
[Site "Online"]
[Date "2023.09.27"]
[Round "56.1"]
[White "Robson, Ray"]
[Black "Durarbayli, Vasif"]
[Result "1-0"]
[Annotator "TA"]
[ECO "D12"]
[WhiteElo "2699"]
[BlackElo "2625"]
[PlyCount "69"]
[EventDate "2023.09.18"]
[EventType "k.o."]
[EventCountry "NET"]
[SourceTitle "playchess.com"]
[Source "ChessBase"]
[SourceQuality "1"]
[TimeControl "900+3"]

{[%evp 12,69,33,25,32,9,24,34,29,18,32,32,25,8,15,20,141,137,404,404,407,398,382,80,75,75,75,79,80,81,84,72,69,61,105,104,123,102,113,97,93,34,135,135,145,132,130,0,150,146,141,135,151,154,405,400,400,379,663,685]} 1. d4 {[%emt 0:00:14]} d5 {[%emt 0:00:10]} 2. c4 {[%emt 0:00:03]} c6 {[%emt 0:00:00]} 3. Nf3 {[%emt 0:00:07]} Nf6 {[%emt 0:00:01]} 4. e3 {[%emt 0:00:17]} Bf5 {[%emt 0:00:02]} 5. Nh4 {[%emt 0:00:21]} Be4 {[%emt 0:00:01]} 6. Nc3 {[%emt 0:00:12]} e6 {[%emt 0:00:01]} 7. f3 {[%emt 0:00:03]} Bg6 {[%emt 0:00:01] D12: Slav Defence: 3 Nf3 Nf6 4 e3 Bf5.} 8. Bd2 {[%emt 0:00:20]} Be7 {[%emt 0:00:04] 8...Be7 is better than 8...Nbd7.} 9. Nxg6 {[%emt 0:00:13]} hxg6 {[%emt 0:00:00] White is slightly better.} 10. Qc2 {[%emt 0:00:05]} Qc7 {[%emt 0:00:25]} 11. O-O-O {[%emt 0:00:24]} Rxh2 {[%emt 0:00:42]} 12. Rxh2 {[%emt 0:00:07]} Qxh2 {[%emt 0:00:00] [#]} 13. cxd5 $146 {[%emt 0:05:15]} ({Predecessor:} 13. Qb3 Qc7 14. Kb1 Nbd7 15. cxd5 Nxd5 16. Nxd5 exd5 17. e4 Nf6 18. e5 Nd7 19. f4 {1-0 Matlakov,M (2671)-Vallejo Pons,F (2711) Chess.com Rapid CGC KO 2022 (1.2)}) 13... cxd5 {[%emt 0:00:07]} (13... Nxd5 $11 {remains equal.} 14. Nxd5 exd5) 14. Nxd5 $16 {[%emt 0:00:01]} Nxd5 $4 {[%emt 0:00:40][%mdl 8192]} (14... exd5 $2 15. Qc8+ Bd8 16. f4 $18 (16. Qxb7 Qc7+ 17. Qxc7 Bxc7 $17)) (14... Nc6 $16) 15. Qc8+ $18 {[%emt 0:00:03]} Bd8 {[%emt 0:00:01]} 16. Bb5+ {[%emt 0:00:01]} (16. Qxb7 $2 Qc7+ 17. Qxc7 Nxc7 $17) 16... Ke7 {[%emt 0:00:10] [#] aiming for ...Qc7+.} 17. e4 $2 {[%emt 0:00:01]} (17. f4 $18 {[%cal Od2b4] Threatening mate with Bb4+!} Qxg2 18. Qxb7+ Bc7 19. Qxa8) 17... Qc7+ $16 {[%emt 0:00:42]} 18. Qxc7+ {[%emt 0:00:03]} Bxc7 {[%emt 0:02:40]} (18... Nxc7 {leads to mate.} 19. Bb4+ Kf6 20. e5+ Kg5 21. Bd2+ Kh4 22. Bf4 Kh5 23. Rh1+ Bh4 24. g4#) 19. exd5 {[%emt 0:00:02]} Nd7 {[%emt 0:00:11]} 20. dxe6 {[%emt 0:02:55]} fxe6 {[%emt 0:00:03] [#]} 21. d5 $1 {[%emt 0:00:14] Hoping for Bb4+.} e5 {[%emt 0:00:50]} (21... exd5 $2 22. Bb4+ Ke6 23. Re1+ Ne5 24. f4 $18) 22. Bd3 {[%emt 0:00:29] White is more active.} Nf6 {[%emt 0:00:13]} 23. Bxg6 {[%emt 0:00:19]} Bd6 {[%emt 0:00:27]} 24. Bc3 {[%emt 0:01:24]} Rc8 {[%emt 0:00:13]} 25. Kb1 {[%emt 0:00:29]} Rc5 {[%emt 0:00:23]} 26. Be4 {[%emt 0:00:03]} (26. g4 $16) 26... b5 {[%emt 0:00:17]} ({Black should try} 26... Nxe4 $14 27. fxe4 Rc4) 27. a3 {[%emt 0:00:27]} Rc4 {[%emt 0:00:51]} 28. Bd3 {[%emt 0:00:11] This pair of bishops is nice.} Rc5 {[%emt 0:00:03]} 29. Be4 {[%emt 0:00:13]} Rc4 $1 {[%emt 0:00:05]} 30. Bf5 {[%emt 0:00:12]} Rc5 {[%emt 0:00:24]} 31. Be6 {[%emt 0:00:05]} Rc4 {[%emt 0:00:14]} 32. Re1 {[%emt 0:00:24]} e4 $2 {[%emt 0:00:16]} (32... Bxa3 $16 {was necessary.} 33. Rxe5 Bd6) 33. fxe4 $18 {[%emt 0:00:13] e5 would be deadly.} Bg3 {[%emt 0:00:33]} 34. Re2 {[%emt 0:00:02]} Nxe4 $2 {[%emt 0:00:08]} (34... Ne8 35. Bb4+ Rxb4) 35. Bf5 {[%emt 0:00:07] Weighted Error Value: White=0.30/Black=0.55} 1-0

[Event "AI Cup Div-3 2023"]
[Site "Online"]
[Date "2023.09.27"]
[Round "56.1"]
[White "Sevian, Samuel"]
[Black "Demchenko, Anton"]
[Result "1-0"]
[Annotator "TA"]
[ECO "A00"]
[WhiteElo "2698"]
[BlackElo "2608"]
[PlyCount "131"]
[EventDate "2023.09.18"]
[EventType "k.o."]
[EventCountry "NET"]
[SourceTitle "playchess.com"]
[Source "ChessBase"]
[SourceQuality "1"]
[TimeControl "900+3"]

{[%evp 9,131,20,30,26,28,27,21,8,21,0,34,25,23,23,54,37,42,54,53,0,60,52,45,0,0,0,142,93,116,111,112,114,119,112,222,237,236,243,235,241,238,245,235,219,340,346,346,354,354,354,350,349,354,345,338,327,351,350,352,350,384,372,429,429,437,437,429,428,509,510,510,507,496,483,610,608,664,664,932,650,643,0,828,856,797,475,475,474,459,454,474,306,523,524,495,466,465,413,389,215,651,625,1930,1293,12836,12837,12837,12837,12837,12838,12838,12839,12841,12838,12843,12843,12842,12841,12841,12842,12842,12842,12846,12847]} 1. Nc3 {[%emt 0:00:03]} e5 {[%emt 0:00:17]} 2. Nf3 {[%emt 0:00:02]} Nc6 {[%emt 0:00:12]} 3. d4 {[%emt 0:00:00]} exd4 {[%emt 0:00:03]} 4. Nxd4 {[%emt 0:00:01]} Nf6 {[%emt 0:00:37]} 5. Bg5 {[%emt 0:00:12]} Bb4 {[%emt 0:00:35]} 6. Nxc6 {[%emt 0:00:25][%mdl 64] Remove Defender. A00: Irregular Openings.} bxc6 {[%emt 0:00:05]} 7. Qd4 {[%emt 0:00:01]} Qe7 {[%emt 0:01:46]} 8. O-O-O {[%emt 0:00:02] The position is equal.} Bxc3 {[%emt 0:00:22]} 9. bxc3 {[%emt 0:00:26]} d5 {[%emt 0:00:55] ...Qa3+ is the strong threat.} (9... c5 $5 {[%cal Rc5d4]} 10. Bxf6 gxf6 $11) 10. Bxf6 {[%emt 0:01:10]} gxf6 {[%emt 0:00:09] [#]} 11. e3 $146 {[%emt 0:00:02]} ({Predecessor:} 11. e4 Bg4 12. Qa4 Qc5 13. Rxd5 Qxc3 14. Bc4 O-O 15. Qxc6 Be6 16. Rhd1 Rab8 17. R1d3 {0-1 Frick,C (2271)-Pap,M (2498) Avoine op 23rd 2008 (5)}) 11... Be6 {[%emt 0:00:26]} 12. Be2 {[%emt 0:00:01]} Rb8 {[%emt 0:00:45]} 13. Qxa7 {[%emt 0:00:35] Active counter play!} O-O {[%emt 0:00:09]} 14. Qd4 {[%emt 0:00:01]} (14. Qa4 $1 $14) 14... c5 {[%emt 0:01:30]} (14... Bf5 $11) 15. Qh4 $14 {[%emt 0:00:02]} c4 {[%emt 0:00:02] Against Bd3} 16. Rd4 {[%emt 0:00:19]} Bf5 {[%emt 0:01:12]} 17. Kd2 {[%emt 0:01:25]} Be4 {[%emt 0:00:25] [#] Black is now going downhill.} (17... Bg6 $11) 18. Bxc4 $1 {[%emt 0:01:22][%mdl 512]} Rfd8 {[%emt 0:01:07]} (18... c5 19. Rxd5) 19. Bd3 {[%emt 0:01:12][%cal Rd3e4]} c5 {[%emt 0:00:03] [#]} 20. Rxd5 {[%emt 0:00:47][%mdl 512]} Rxd5 {[%emt 0:02:18]} 21. Qg3+ {[%emt 0:00:02]} Bg6 {[%emt 0:00:01]} (21... Kh8 $16 22. Qxb8+ Rd8) 22. Qxb8+ $18 {[%emt 0:00:05]} Rd8 {[%emt 0:00:00]} 23. Qf4 {[%emt 0:01:59]} Qb7 {[%emt 0:00:44] Hoping for ...Qb2.} 24. Rd1 $1 {[%emt 0:00:56]} (24. Qxf6 Rxd3+ 25. cxd3 Qb2+ 26. Ke1 Qc1+ 27. Ke2 Qxh1 $11) 24... Qb2 {[%emt 0:00:28]} 25. Ke1 {[%emt 0:00:14]} (25. Qxf6 Rxd3+ 26. Ke1 Rxd1+ 27. Kxd1 Bxc2+ 28. Ke2 Be4+ 29. Ke1 Qb1+ 30. Ke2 Qc2+ 31. Ke1 Qb1+ 32. Ke2 Qxa2+ 33. Ke1 Qb1+ 34. Kd2 Qd3+ 35. Ke1 h6 36. Qxh6 Qxc3+ 37. Ke2 Qd3+ 38. Ke1 c4 $19) 25... Qxc3+ {[%emt 0:00:03] [#]} 26. Ke2 $1 {[%emt 0:00:10]} Rxd3 {[%emt 0:00:49]} (26... Ra8 $142 27. a4 Kg7) 27. cxd3 {[%emt 0:00:36][%mdl 4096] Endgame KQR-KQB} Qc2+ {[%emt 0:00:03]} 28. Ke1 {[%emt 0:00:01]} Bxd3 {[%emt 0:00:05][%csl Gd3][%cal Rc2e2]} 29. Qg4+ {[%emt 0:02:42]} (29. Qxf6 $2 Qe2#) 29... Kf8 {[%emt 0:00:02] [#]} 30. Rd2 $1 {[%emt 0:00:00]} Qc3 {[%emt 0:00:11]} 31. Qd1 {[%emt 0:00:01]} ({Stronger than} 31. Qd7 Qc1+ 32. Rd1 Qc3+ 33. Rd2 Qc1+ 34. Rd1 Qc3+ 35. Rd2 $11) 31... c4 {[%emt 0:00:04]} 32. f3 {[%emt 0:00:00]} Kg7 {[%emt 0:00:33]} 33. Kf2 {[%emt 0:00:02]} Qa3 {[%emt 0:00:10]} 34. h3 {[%emt 0:00:05]} h5 {[%emt 0:00:04]} 35. Qa1 {[%emt 0:00:06]} h4 {[%emt 0:00:04]} 36. Rd1 {[%emt 0:00:29]} Bf5 {[%emt 0:00:19]} 37. e4 {[%emt 0:00:04]} Be6 {[%emt 0:00:05]} 38. Rc1 {[%emt 0:00:01]} Qc5+ {[%emt 0:00:02]} 39. Kf1 {[%emt 0:00:01]} Qa3 {[%emt 0:00:09]} 40. Rc3 {[%emt 0:00:05]} Qd6 {[%emt 0:00:04]} 41. Qe1 {[%emt 0:00:01]} Qf4 {[%emt 0:00:01]} 42. a4 {[%emt 0:00:02][%cal Ba2a4,Ba4a5][%mdl 32]} Kg6 {[%emt 0:00:02]} 43. a5 {[%emt 0:00:01]} Qe5 {[%emt 0:00:05]} 44. Qa1 {[%emt 0:00:07] Black must now prevent a6.} Qh2 {[%emt 0:00:03]} 45. Qe1 $2 {[%emt 0:00:04]} (45. Ra3 $18) 45... Qh1+ $2 {[%emt 0:00:02][%mdl 8192]} (45... Qe5 $11 46. a6 Qc7) 46. Kf2 {[%emt 0:00:02]} Qh2 {[%emt 0:00:00]} 47. Qg1 {[%emt 0:00:30]} Qe5 {[%emt 0:00:02]} 48. Qc1 {[%emt 0:00:02]} Qxa5 {[%emt 0:00:02]} 49. f4 {[%emt 0:00:03]} f5 {[%emt 0:00:02]} 50. exf5+ {[%emt 0:00:05]} Kxf5 $2 {[%emt 0:00:00]} (50... Qxf5 51. Qc2 Kf6 52. Qxf5+ Kxf5) 51. Re3 {[%emt 0:00:10] Strongly threatening Re5+.} Qc5 {[%emt 0:00:04]} 52. Kf1 {[%emt 0:00:01]} Kg6 {[%emt 0:00:02]} 53. Kg1 {[%emt 0:00:02]} ({Not} 53. Re5 Qd4 54. Qc2+ Kf6 $18) 53... Bf5 {[%emt 0:00:07]} 54. Kh1 {[%emt 0:00:02]} (54. Qe1 $142) 54... Qc6 $2 {[%emt 0:00:04]} (54... Qd4 55. Rf3 f6) 55. Qc3 {[%emt 0:00:04] White is clearly winning.} Be4 {[%emt 0:00:04]} 56. Kh2 {[%emt 0:00:06] And now Qe1 would win.} f5 {[%emt 0:00:01]} 57. Qh8 {[%emt 0:00:10]} Qf6 {[%emt 0:00:04]} 58. Qg8+ {[%emt 0:00:06]} Qg7 {[%emt 0:00:05]} 59. Qxc4 {[%emt 0:00:01]} Kh6 {[%emt 0:00:05]} 60. Qe2 {[%emt 0:00:09]} Qd4 {[%emt 0:00:00]} 61. Qf2 {[%emt 0:00:03]} Qf6 {[%emt 0:00:05]} 62. Rb3 {[%emt 0:00:03] Threatening mate with Rb6.} Kg7 {[%emt 0:00:05]} 63. Qb2 {[%emt 0:00:01]} Qxb2 {[%emt 0:00:03]} 64. Rxb2 {[%emt 0:00:00]} Kf6 {[%emt 0:00:00]} 65. g3 {[%emt 0:00:00]} hxg3+ {[%emt 0:00:01]} 66. Kxg3 {[%emt 0:00:00] Weighted Error Value: White=0.15 (very precise) /Black=0.30} 1-0